bitfinex-derivatives/quotes_SOLF0:USTF0_20250202
["timestamp","ask_amount","ask_price","bid_price","bid_amount"]
[1738527790586,4.8625,205.71,205.63,0.03623383]
[1738527790887,0.03210304,205.67,205.63,0.03623383]
[1738527792194,40.05107377,205.79,205.63,0.03623383]
[1738527792500,40.05107377,205.79,205.62,39.99267377]
[1738527793194,40.05107377,205.79,205.66,4.8635]
[1738527793195,4.8615,205.75,205.66,4.8635]
[1738527793487,0.03408528,205.73,205.68,0.03592397]
[1738527794297,4.68,205.83,205.68,0.03592397]
[1738527794794,4.8609,205.78,205.68,4.863]
[1738527795094,39.99267377,206.03,205.69,96.36]
[1738527795294,39.99267377,206.0,205.79,39.99267377]
[1738527795485,0.8907527,205.99,205.8,5.9491]
[1738527795689,4.8572,205.93,205.8,5.9491]
[1738527795886,0.1154,206.02,205.87,0.03738678]
[1738527796088,39.99267377,206.0,205.87,0.03738678]
[1738527796288,0.1154,206.02,205.8,5.9491]
[1738527796289,39.99267377,205.96,205.8,5.9491]
[1738527796484,4.7754,206.02,205.8,5.9491]
[1738527796485,39.99267377,205.92,205.8,5.9491]
[1738527796735,4.8587,205.87,205.8,5.9491]
[1738527796891,39.99267377,205.92,205.8,5.9491]
[1738527797088,39.99267377,205.92,205.84,0.035235]
[1738527797292,4.8591,205.85,205.84,0.035235]
[1738527797492,4.8591,205.85,205.73,4.8619]
[1738527797693,0.1154,205.91,205.82,0.03186825]
[1738527798089,0.1154,205.91,205.71,9.0465]
[1738527798295,4.8591,205.85,205.84,0.03592126]
[1738527798498,0.1154,205.91,205.73,4.8619]
[1738527798891,0.1154,205.91,205.82,0.03059886]
[1738527799594,4.8593,205.84,205.82,0.03059886]
[1738527801593,39.99267377,205.88,205.82,0.03059886]
[1738527801800,4.8595,205.83,205.82,0.03059886]
[1738527802390,39.99267377,205.88,205.71,9.0465]
[1738527802604,4.8608,205.78,205.71,9.0465]
[1738527802900,39.99267377,205.88,205.71,9.0465]
[1738527803295,4.8597,205.83,205.71,13.9088]
[1738527803598,0.89124847,205.87,205.71,13.9088]
[1738527803599,39.99267377,205.88,205.71,9.0465]
[1738527803800,0.03674737,205.79,205.75,0.03162335]
[1738527804198,0.1154,205.91,205.74,39.99267377]
[1738527804397,8.286e-05,205.79,205.78,39.99267377]
[1738527804703,0.89102388,205.99,205.78,39.99267377]
[1738527804902,0.89102388,205.99,205.75,2.9163]
[1738527804903,0.89102388,205.98,205.8,39.99267377]
[1738527805099,0.2069,206.02,205.8,39.99267377]
[1738527805100,0.89102388,206.01,205.8,39.99267377]
[1738527805295,0.89080874,206.0,205.8,39.99267377]
[1738527805600,39.99267377,205.96,205.75,42.90897377]
[1738527805796,39.99267377,205.92,205.88,0.03136967]
[1738527806095,39.99267377,205.92,205.75,2.9163]
[1738527806339,0.89108977,205.91,205.75,2.9163]
[1738527806502,4.8601,205.81,205.75,2.9163]
[1738527807008,4.8598,205.83,205.75,2.9163]
[1738527807197,0.0339435,205.8,205.76,0.03617384]
[1738527807502,0.89119581,205.91,205.75,2.9163]
[1738527807700,0.03490208,205.8,205.76,0.03323011]
[1738527808100,39.99267377,205.88,205.71,9.0465]
[1738527808301,0.03277674,205.8,205.76,0.03331574]
[1738527808899,4.862,205.73,205.65,3.1738]
[1738527809203,39.99267377,205.81,205.65,3.1738]
[1738527809403,39.99267377,205.93,205.72,39.99267377]
[1738527809603,5.55128237,205.92,205.73,9.0317]
[1738527809803,39.99267377,205.89,205.73,9.0317]
[1738527810003,0.89123379,205.88,205.73,9.0317]
[1738527810206,0.03155154,205.85,205.8,0.03623214]
[1738527810395,40.02422531,205.85,205.8,0.03623214]
[1738527810644,4.86,205.81,205.8,0.03623214]
[1738527810800,40.02422531,205.85,205.68,39.99267377]
[1738527811099,39.99267377,205.89,205.68,39.99267377]
[1738527811300,39.99267377,205.85,205.68,39.99267377]
[1738527812004,0.03473749,205.79,205.74,0.03429111]
[1738527812407,39.99267377,205.93,205.74,0.03429111]
[1738527812607,0.8911428,205.92,205.72,39.99267377]
[1738527812912,4.8587,205.87,205.77,4.861]
[1738527813703,0.03123328,205.84,205.8,0.03652624]
[1738527819913,39.99267377,206.0,205.82,39.99267377]
[1738527820115,0.8909104,205.99,205.83,9.1535]
[1738527820708,4.64,206.02,205.83,9.1535]
[1738527820908,0.89073497,206.01,205.83,9.1535]
[1738527821210,0.03226515,205.95,205.9,0.03367611]
[1738527821411,0.03226515,205.95,205.88,4.8581]
[1738527822314,0.03226515,205.95,205.87,4.89576491]
[1738527822515,0.03226515,205.95,205.87,0.03716491]
[1738527823215,0.03226515,205.95,205.89,4.8581]
[1738527823450,0.03226515,205.95,205.87,0.03716491]
[1738527824114,0.03226515,205.95,205.89,4.8581]
[1738527825113,0.03226515,205.95,205.9,4.8579]
[1738527827112,0.03226515,205.95,205.91,4.8574]
[1738527827615,0.03226515,205.95,205.88,3.0959]
[1738527827816,0.03226515,205.95,205.94,4.8569]
[1738527828316,0.03226515,205.95,205.92,0.03217119]
[1738527833018,24.45625298,206.09,205.92,0.03217119]
[1738527833319,24.45625298,206.09,205.88,27.55215298]
[1738527833519,4.8539,206.08,205.99,4.8555]
[1738527833924,24.45625298,206.09,205.99,4.8555]
[1738527834153,24.45625298,206.09,206.01,0.0309961]
[1738527834514,24.45625298,206.09,205.88,27.55215298]
[1738527834515,24.45625298,206.09,206.03,0.03284585]
[1738527834713,24.45625298,206.09,205.92,24.45625298]
[1738527835023,24.45625298,206.09,205.97,4.8562]
[1738527835221,29.09625298,206.13,205.92,24.45625298]
[1738527835420,4.8534,206.09,205.99,4.8557]
[1738527835620,29.09625298,206.13,206.01,0.03421119]
[1738527835921,4.8551,206.02,206.01,0.03421119]
[1738527836114,24.45625298,206.05,205.9,4.8577]
[1738527836420,24.45625298,206.05,205.88,3.0959]
[1738527836613,24.45625298,206.01,205.88,3.0959]
[1738527837328,0.03259005,205.97,205.92,0.03135356]
[1738527839726,0.03259005,205.97,205.94,4.8568]
[1738527839925,4.8548,206.04,205.92,0.03135356]
[1738527839926,4.64,206.08,205.92,0.03135356]
[1738527840123,4.64,206.08,205.92,24.45625298]
[1738527840320,4.8544,206.06,205.97,4.8561]
[1738527840622,4.64,206.08,205.92,24.45625298]
[1738527841020,4.64,206.08,205.88,27.55215298]
[1738527841220,24.45625298,206.05,205.98,0.03493691]
[1738527842534,24.45625298,206.01,205.88,3.0959]
[1738527843034,4.8572,205.93,205.88,3.0959]
[1738527843234,24.45625298,206.01,205.88,3.0959]
[1738527843428,24.45625298,205.93,205.75,102.15473283]
[1738527843631,24.45625298,205.93,205.8,3.0132]
[1738527844030,4.8581,205.9,205.8,3.0132]
[1738527844235,24.45625298,205.93,205.8,3.0132]
[1738527844630,68.32895394,206.19,205.83,39.74700399]
[1738527844631,39.74700399,206.03,205.83,39.74700399]
[1738527844833,0.03499784,205.89,205.87,39.74700399]
[1738527845032,0.03499784,205.89,205.8,3.0132]
[1738527845033,39.74700399,205.99,205.8,3.0132]
[1738527845227,4.857,205.94,205.82,4.8596]
[1738527845430,0.03180746,205.9,205.86,0.03471997]
[1738527845642,39.74700399,205.95,205.8,3.0132]
[1738527845829,0.03117315,205.9,205.86,0.0336466]
[1738527846235,4.64,205.96,205.86,0.0336466]
[1738527846435,4.8543,206.06,205.95,4.8567]
[1738527846737,39.74700399,206.07,205.88,6.1627]
[1738527847031,4.8548,206.04,205.94,4.8569]
[1738527847239,39.74700399,206.07,205.88,6.1627]
[1738527847437,0.03521578,206.01,205.97,0.03438129]
[1738527848742,0.03521578,206.01,205.97,4.89058129]
[1738527849741,0.03521578,206.01,205.97,0.03438129]
[1738527851237,4.8571,205.94,205.79,39.74700399]
[1738527851439,4.62,205.97,205.8,2.9853]
[1738527851846,4.858,205.9,205.8,7.8454]
[1738527852144,39.74700399,205.95,205.8,2.9853]
[1738527852339,0.03131264,205.87,205.83,0.03724489]
[1738527852941,4.89001264,205.87,205.83,0.03724489]
[1738527853642,0.03131264,205.87,205.83,0.03724489]
[1738527858845,0.03131264,205.87,205.85,4.8591]
[1738527859045,0.03131264,205.87,205.83,0.03724489]
[1738527859241,39.74700399,205.99,205.83,0.03724489]
[1738527859546,4.62,205.98,205.82,39.74700399]
[1738527859743,4.62,205.98,205.78,39.74700399]
[1738527859939,39.74700399,205.95,205.75,12.302]
[1738527860145,39.74700399,205.91,205.75,12.302]
[1738527860340,0.03156442,205.87,205.83,0.03189385]
[1738527860546,4.8592,205.85,205.83,0.03189385]
[1738527860749,39.77856841,205.87,205.75,6.2461]
[1738527860950,4.62,205.9,205.71,2.9962]
[1738527860951,4.8608,205.78,205.71,2.9962]
[1738527861255,39.74700399,205.83,205.71,2.9962]
[1738527861648,39.74700399,205.79,205.67,9.5309]
[1738527861848,39.78268018,205.79,205.75,0.03681928]
[1738527862149,4.8612,205.77,205.75,0.03681928]
[1738527862351,0.03567619,205.79,205.75,0.03681928]
[1738527862748,39.78268018,205.79,205.75,0.03681928]
[1738527863148,4.8612,205.76,205.75,0.03681928]
[1738527863356,39.78268018,205.79,205.63,3.1256]
[1738527863550,39.74700399,205.73,205.59,8.8941]
[1738527863753,4.62,205.74,205.59,8.8941]
[1738527863952,4.62,205.74,205.62,39.74700399]
[1738527864255,4.62,205.74,205.64,4.8639]
[1738527864448,4.62,205.74,205.6,3.1256]
[1738527864658,0.03333206,205.7,205.66,0.03311529]
[1738527865755,4.89603206,205.7,205.66,0.03311529]
[1738527865997,0.03333206,205.7,205.66,0.03311529]
[1738527866454,39.74700399,205.81,205.66,0.03311529]
[1738527866753,39.74700399,205.81,205.62,39.74700399]
[1738527867256,4.8611,205.77,205.67,4.8633]
[1738527867457,0.03477688,205.74,205.69,0.03099655]
[1738527869757,4.89647688,205.74,205.69,0.03099655]
[1738527870057,0.03477688,205.74,205.69,0.03099655]
[1738527870459,39.78178087,205.74,205.69,0.03099655]
[1738527870661,24.5352184,205.72,205.69,0.03099655]
[1738527871757,4.8626,205.7,205.69,0.03099655]
[1738527872961,4.8643,205.63,205.48,24.5352184]
[1738527873160,4.8643,205.63,205.53,2.8906]
[1738527873362,4.864,205.64,205.54,4.8664]
[1738527873665,24.5352184,205.67,205.53,2.8906]
[1738527873959,0.03674777,205.61,205.56,0.03188267]
[1738527875159,4.8657,205.57,205.56,0.03188267]
[1738527875359,0.03674777,205.61,205.56,0.03188267]
[1738527877162,39.89969404,205.59,205.38,9.0144]
[1738527877460,39.89969404,205.59,205.39,3.0142]
[1738527877960,4.866,205.56,205.44,4.8687]
[1738527878160,39.89969404,205.59,205.4,39.89969404]
[1738527878361,0.03523806,205.52,205.48,0.03687986]
[1738527878559,0.03523806,205.52,205.5,4.8671]
[1738527878860,0.03271986,205.53,205.5,4.8671]
[1738527879362,0.03558029,205.54,205.5,4.8671]
[1738527879666,4.8647,205.61,205.49,4.8676]
[1738527879851,0.03424241,205.54,205.5,0.03682706]
[1738527881660,39.89969404,205.67,205.5,0.03682706]
[1738527881857,39.89969404,205.67,205.5,8.85492706]
[1738527882061,39.89969404,205.67,205.5,8.8181]
[1738527882265,4.8638,205.66,205.55,4.8662]
[1738527882763,44.51969404,205.67,205.55,4.8662]
[1738527882965,0.03472609,205.63,205.58,0.0328533]
[1738527883564,0.03472609,205.63,205.58,4.8983533]
[1738527883969,0.03472609,205.63,205.58,0.0328533]
[1738527884663,0.2473,205.78,205.58,0.0328533]
[1738527884664,44.51969404,205.75,205.58,0.0328533]
[1738527885060,39.89969404,205.75,205.57,39.89969404]
[1738527885564,44.51969404,205.75,205.57,39.89969404]
[1738527885768,4.8627,205.7,205.6,4.8648]
[1738527885965,0.03656286,205.68,205.64,0.03124051]
[1738527888061,44.51969404,205.79,205.64,0.03124051]
[1738527888464,44.51969404,205.79,205.62,8.8869]
[1738527888971,39.89969404,205.79,205.62,8.8869]
[1738527889268,0.03498297,205.73,205.68,0.03642754]
[1738527889469,4.62,205.81,205.62,8.8869]
[1738527889670,0.03238802,205.73,205.68,0.03508422]
[1738527889869,0.03238802,205.73,205.62,8.8869]
[1738527890169,0.03238802,205.73,205.67,4.8631]
[1738527890769,39.89969404,205.88,205.69,39.89969404]
[1738527891070,39.89969404,205.92,205.73,39.89969404]
[1738527891270,44.75739404,205.92,205.81,4.86]
[1738527891569,39.89969404,205.92,205.81,4.86]
[1738527891869,4.8585,205.88,205.78,4.8607]
[1738527892069,4.62,205.91,205.84,0.03734391]
[1738527892467,4.62,205.91,205.74,8.8813]
[1738527892670,4.62,205.91,205.85,0.03715622]
[1738527892865,4.8586,205.88,205.77,4.8609]
[1738527893170,4.62,205.91,205.86,0.03654868]
[1738527893373,4.62,205.91,205.77,4.8609]
[1738527893573,4.62,205.91,205.86,0.03515579]
[1738527893774,4.858,205.9,205.86,0.03515579]
[1738527894074,39.89969404,205.92,205.86,0.03515579]
[1738527894075,39.89969404,205.96,205.86,0.03515579]
[1738527894568,4.8574,205.92,205.89,0.03136862]
[1738527894973,4.8574,205.92,205.76,39.89969404]
[1738527895173,4.8572,205.93,205.88,0.03725483]
[1738527895375,4.6,205.94,205.76,39.89969404]
[1738527895568,4.6,205.94,205.88,0.03141929]
[1738527895810,4.8572,205.93,205.82,4.8596]
[1738527895970,4.6,205.94,205.89,0.03698527]
[1738527896177,4.6,205.94,205.77,2.929]
[1738527896471,39.89969404,206.0,205.89,0.03095775]
[1738527896669,24.46681855,206.01,205.81,24.46681855]
[1738527896891,4.6,206.0,205.92,0.0371381]
[1738527897378,24.46681855,205.97,205.92,0.0371381]
[1738527898076,4.8572,205.93,205.92,0.0371381]
[1738527899077,4.8578,205.91,205.77,27.39581855]
[1738527899377,4.8578,205.91,205.79,4.8603]
[1738527900478,0.03369271,205.87,205.83,0.03358155]
[1738527900676,24.46681855,206.01,205.81,24.46681855]
[1738527900886,24.46681855,206.05,205.85,24.46681855]
[1738527901181,24.46681855,206.05,205.86,6.165]
[1738527901771,0.02150561,205.98,205.93,0.03095204]
[1738527902979,29.06681855,206.1,205.93,0.03095204]
[1738527903184,0.3689,206.13,205.94,24.46681855]
[1738527903481,24.46681855,206.18,205.98,24.46681855]
[1738527903781,67.7206573,206.2,206.02,24.46681855]
[1738527904281,67.7206573,206.2,206.09,0.03402514]
[1738527904480,29.06681855,206.22,206.09,0.03402514]
[1738527904683,29.06681855,206.22,206.02,24.46681855]
[1738527904881,4.8518,206.16,206.05,4.8543]
[1738527905274,4.8518,206.16,206.08,0.03664723]
[1738527905485,29.06681855,206.22,206.08,0.03664723]
[1738527905673,29.06681855,206.22,206.03,4.8547]
[1738527905871,29.06681855,206.22,206.13,0.03650624]
[1738527906381,24.46681855,206.22,206.13,0.03650624]
[1738527906580,4.8522,206.15,206.13,0.03650624]
[1738527906782,24.46681855,206.3,206.11,24.46681855]
[1738527906984,53.77515394,206.33,206.11,24.46681855]
[1738527907179,53.77515394,206.33,206.15,24.46681855]
[1738527907375,53.77515394,206.33,206.16,3.0505]
[1738527907588,53.77515394,206.33,206.21,4.8505]
[1738527907879,0.03321726,206.29,206.25,0.03655689]
[1738527908182,24.46681855,206.38,206.16,3.0505]
[1738527908383,0.03530218,206.29,206.25,0.03382454]
[1738527908683,24.46681855,206.34,206.17,2.8908]
[1738527908882,24.46681855,206.34,206.25,0.03673149]
[1738527908883,0.03627673,206.29,206.25,0.03673149]
[1738527909687,0.03627673,206.29,206.12,6.1674]
[1738527909882,24.46681855,206.3,206.12,6.1674]
[1738527910077,24.46681855,206.36,206.12,6.1674]
[1738527910283,0.96922704,206.35,206.12,6.1674]
[1738527910483,24.46681855,206.32,206.12,6.1674]
[1738527910886,0.03161781,206.24,206.2,0.03573254]
[1738527911085,4.63161781,206.24,206.2,0.03573254]
[1738527911685,4.8505,206.22,206.2,0.03573254]
[1738527911986,0.03161781,206.24,206.2,0.03573254]
[1738527913387,5.54922704,206.35,206.2,0.03573254]
[1738527913686,0.96922704,206.35,206.23,24.46681855]
[1738527913912,0.96922704,206.35,206.24,5.8732]
[1738527914281,4.58,206.39,206.24,5.8732]
[1738527914491,0.0347981,206.32,206.27,0.03526671]
[1738527914687,4.8489,206.28,206.27,0.03526671]
[1738527917788,0.0347981,206.32,206.27,0.03526671]
[1738527921593,4.8487,206.3,206.27,0.03526671]
[1738527922591,4.8829981,206.32,206.27,0.03526671]
[1738527922996,0.0347981,206.32,206.27,0.03526671]
[1738527923196,4.8485,206.3,206.27,0.03526671]
[1738527923398,0.0347981,206.32,206.27,0.03526671]
[1738527925398,24.46681855,206.48,206.31,24.46681855]
[1738527925596,24.1933,206.73,206.31,24.46681855]
[1738527925597,0.88867415,206.47,206.31,24.46681855]
[1738527925795,0.381,206.49,206.31,24.46681855]
[1738527926095,4.58,206.48,206.32,3.0378]
[1738527926489,4.58,206.48,206.38,0.03449582]
[1738527926893,4.8458,206.42,206.38,0.03449582]
[1738527927999,4.58,206.48,206.38,0.03449582]
[1738527928299,4.58,206.47,206.38,0.03449582]
[1738527928700,4.8453,206.44,206.38,0.03449582]
[1738527928899,4.58,206.49,206.38,0.03449582]
[1738527930405,0.3776,206.56,206.38,0.03449582]
[1738527930705,0.888311,206.55,206.36,7.937]
[1738527930898,24.46681855,206.63,206.45,0.03577492]
[1738527931105,0.88798996,206.62,206.45,5.9677]
[1738527931406,0.88798996,206.62,206.52,0.03283835]
[1738527931602,24.46681855,206.63,206.52,0.03283835]
[1738527931805,0.8879696,206.62,206.52,0.03283835]
[1738527932005,24.46681855,206.63,206.52,0.03283835]
[1738527932413,4.841,206.62,206.52,0.03283835]
[1738527932707,24.46681855,206.75,206.56,24.46681855]
[1738527932902,5.5280275,206.74,206.56,24.46681855]
[1738527933103,0.8877275,206.73,206.63,0.03330745]
[1738527933406,0.88768927,206.72,206.63,0.03330745]
[1738527933608,4.6403,206.74,206.63,0.03330745]
[1738527933609,4.8403,206.65,206.63,0.03330745]
[1738527933803,4.58,206.65,206.45,8.9788]
[1738527934105,4.8433,206.52,206.45,8.9788]
[1738527934706,4.8431,206.54,206.45,8.9788]
[1738527934908,0.03128841,206.51,206.46,0.03531985]
[1738527935205,0.03128841,206.51,206.45,8.9788]
[1738527935407,0.03128841,206.51,206.46,0.03556057]
[1738527936014,4.8438,206.5,206.46,0.03556057]
[1738527936308,0.03128841,206.51,206.46,0.03556057]
[1738527936712,1.40576682,206.64,206.46,24.50237912]
[1738527937010,5.52786682,206.64,206.52,4.8433]
[1738527937206,5.52786682,206.64,206.47,8.7805]
[1738527937806,24.46681855,206.62,206.47,8.7805]
[1738527938008,24.46681855,206.58,206.53,0.03332703]
[1738527938203,24.46681855,206.62,206.53,0.03332703]
[1738527938621,4.8419,206.58,206.53,0.03332703]
[1738527939010,39.52439606,206.61,206.53,0.03332703]
[1738527939211,4.8426,206.55,206.53,0.03332703]
[1738527939708,4.8428,206.54,206.53,0.03332703]
[1738527939955,39.52439606,206.57,206.4,3.002]
[1738527940113,39.52439606,206.57,206.37,5.8843]
[1738527940314,4.8436,206.51,206.4,4.8461]
[1738527940510,39.52439606,206.57,206.37,9.0183]
[1738527940707,39.52439606,206.53,206.37,9.0183]
[1738527941013,39.52439606,206.49,206.31,39.52439606]
[1738527941213,39.52439606,206.49,206.34,6.0005]
[1738527941508,0.03233801,206.43,206.38,0.03704091]
[1738527942906,4.87783801,206.43,206.38,0.03704091]
[1738527943104,4.59233801,206.43,206.38,0.03704091]
[1738527943915,4.8457,206.42,206.38,0.03704091]
[1738527944112,4.59233801,206.43,206.38,0.03704091]
[1738527944317,4.59233801,206.43,206.27,39.52439606]
[1738527944520,4.56,206.43,206.28,8.8695]
[1738527944817,4.8461,206.41,206.3,4.8484]
[1738527945017,39.52439606,206.53,206.34,39.52439606]
[1738527945221,5.44846026,206.52,206.34,39.52439606]
[1738527945414,4.8436,206.51,206.4,4.8461]
[1738527945613,0.03486062,206.45,206.41,0.03638881]
[1738527954019,4.56,206.54,206.41,0.03638881]
[1738527954214,9.4031,206.54,206.44,4.8451]
[1738527954521,4.8431,206.54,206.4,12.2478]
[1738527954722,4.56,206.56,206.4,12.2478]
[1738527954959,39.52439606,206.61,206.4,12.2478]
[1738527955118,4.987,206.63,206.47,39.52439606]
[1738527955319,0.96786682,206.64,206.47,39.52439606]
[1738527955519,5.52786682,206.64,206.47,39.52439606]
[1738527955719,4.56,206.63,206.42,39.52439606]
[1738527955914,39.52439606,206.61,206.42,39.52439606]
[1738527956318,4.8426,206.55,206.43,4.8452]
[1738527956522,39.52439606,206.61,206.49,0.0345998]
[1738527956823,39.52439606,206.53,206.49,0.0345998]
[1738527957019,44.08439606,206.58,206.49,0.0345998]
[1738527957320,44.08439606,206.58,206.4,12.2478]
[1738527957625,4.8433,206.52,206.51,0.03249361]
[1738527958224,4.8432,206.53,206.4,12.2478]
[1738527958425,44.08439606,206.58,206.4,12.2478]
[1738527958620,4.56,206.57,206.4,12.2478]
[1738527959328,0.03668252,206.51,206.46,0.03489726]
[1738527961823,4.8445,206.47,206.46,0.03489726]
[1738527962023,0.03668252,206.51,206.34,4.8473]
[1738527962222,39.52439606,206.52,206.34,4.8473]
[1738527962421,4.8452,206.44,206.34,4.8473]
[1738527962622,39.52439606,206.52,206.33,3.0019]
[1738527962822,4.56,206.56,206.33,3.0019]
[1738527962823,39.52439606,206.48,206.33,3.0019]
[1738527963326,0.03648512,206.43,206.38,0.03503665]
[1738527963826,4.88198512,206.43,206.38,0.03503665]
[1738527964424,4.8464,206.39,206.38,0.03503665]
[1738527965326,4.848,206.32,206.28,8.8919]
[1738527965821,39.52439606,206.36,206.22,3.1627]
[1738527966328,39.52439606,206.32,206.15,77.69847985]
[1738527966519,0.03364455,206.31,206.27,4.537e-05]
[1738527966726,39.52439606,206.32,206.15,86.71077985]
[1738527966727,4.56,206.3,206.15,86.71077985]
[1738527966920,4.56,206.3,206.15,9.0123]
[1738527967827,0.03467175,206.25,206.2,0.03300641]
[1738527968027,4.8505,206.22,206.2,0.03300641]
[1738527968628,39.52439606,206.24,206.06,135.48439606]
[1738527968831,39.52439606,206.24,206.07,11.6107]
[1738527969226,4.851,206.2,206.07,11.6107]
[1738527969428,39.52439606,206.24,206.07,11.6107]
[1738527969827,0.03318,206.18,206.13,0.03596934]
[1738527970224,4.56,206.17,206.13,0.03596934]
[1738527970734,4.852,206.15,206.13,0.03596934]
[1738527971628,4.852,206.15,206.07,8.7411]
[1738527971629,4.8526,206.13,206.07,5.7244]
[1738527971825,4.8526,206.13,205.99,3.0344]
[1738527972031,4.8526,206.13,205.99,9.0087]
[1738527972933,0.03501965,206.08,206.04,0.03638481]
[1738527973727,4.8543,206.06,206.04,0.03638481]
[1738527974127,0.03501965,206.08,206.04,0.03638481]
[1738527974333,4.88891965,206.08,206.04,0.03638481]
[1738527974747,0.03501965,206.08,206.04,0.03638481]
[1738527974935,4.8544,206.05,206.04,0.03638481]
[1738527975235,0.03501965,206.08,206.04,0.03638481]
[1738527975436,4.854,206.07,206.04,0.03638481]
[1738527975736,0.03501965,206.08,206.04,0.03638481]
[1738527976136,39.52439606,206.07,205.8,39.52439606]
[1738527976337,39.52439606,206.04,205.84,39.52439606]
[1738527976533,39.52439606,206.04,205.82,8.9619]
[1738527976534,39.52439606,206.04,205.88,39.52439606]
[1738527976739,4.8551,206.02,205.88,39.52439606]
[1738527976942,39.52439606,206.14,205.98,4.856]
[1738527977140,39.52439606,206.14,205.82,8.9619]
[1738527977141,4.8528,206.12,205.99,9.2774]
[1738527977340,4.8528,206.12,206.04,0.03292548]
[1738527977341,0.0329059,206.08,206.04,0.03292548]
[1738527980637,39.52439606,206.05,205.7,173.14236975]
[1738527980838,39.52439606,205.97,205.82,12.4193]
[1738527981048,4.56,205.96,205.82,12.4193]
[1738527981242,39.52439606,205.93,205.82,12.4193]
[1738527981744,0.03304808,205.9,205.85,0.03488929]
[1738527982045,4.8586,205.87,205.71,4.8623]
[1738527982242,39.52439606,205.85,205.72,12.4193]
[1738527983342,44.37539606,205.92,205.72,12.4193]
[1738527983343,39.56168833,205.81,205.76,0.03443133]
[1738527983542,4.56,205.8,205.76,0.03443133]
[1738527983843,39.52439606,205.77,205.76,0.03534927]
[1738527984141,39.52439606,205.77,205.63,3.0921]
[1738527984537,4.56,205.8,205.63,3.0921]
[1738527984772,4.56,205.85,205.68,39.52439606]
[1738527984938,39.52439606,205.78,205.66,4.8634]
[1738527985145,39.52439606,205.78,205.74,0.03331863]
[1738527985545,39.52439606,205.78,205.63,3.0921]
[1738527985743,39.55750163,205.78,205.74,0.03171054]
[1738527986047,39.52439606,205.78,205.63,3.0921]
[1738527986245,39.55922985,205.78,205.74,0.0337531]
[1738527986437,39.52439606,205.78,205.63,3.0921]
[1738527986641,39.55610898,205.78,205.64,4.864]
[1738527986841,39.55610898,205.78,205.68,0.035562]
[1738527987040,39.52439606,205.82,205.68,0.035562]
[1738527987243,0.03262008,205.75,205.73,4.8618]
[1738527987447,4.56,205.88,205.74,6.1705]
[1738527987646,4.56,205.88,205.77,4.8609]
[1738527988041,4.56,205.88,205.75,5.8849]
[1738527988347,4.56,205.88,205.79,4.8604]
[1738527988547,0.0317829,205.84,205.79,4.89418189]
[1738527988951,0.0317829,205.84,205.79,4.8604]
[1738527989147,4.56,205.94,205.79,0.033206]
[1738527989548,4.56,205.94,205.76,39.52439606]
[1738527990255,0.03663206,205.87,205.83,0.03355844]
[1738527991254,39.52439606,205.84,205.74,3.1027]
[1738527991453,39.52439606,205.79,205.66,4.8634]
[1738527991946,39.52439606,205.79,205.68,4.863]
[1738527992349,4.56,205.8,205.71,0.03088596]
[1738527992554,4.8585,205.88,205.73,4.8617]
[1738527992555,0.03427409,205.76,205.73,4.8617]
[1738527992762,39.52439606,205.87,205.74,2.9541]
[1738527993159,39.52439606,205.87,205.78,4.8607]
[1738527993461,4.56,205.88,205.74,2.9541]
[1738527994060,0.03670289,205.83,205.79,0.03124879]
[1738527994861,4.8598,205.82,205.79,0.03124879]
[1738527995063,39.56109895,205.83,205.79,0.03124879]
[1738527995759,44.42069895,205.83,205.79,0.03124879]
[1738527996167,39.56109895,205.83,205.79,0.03124879]
[1738527997866,39.56109895,205.83,205.68,5.8089]
[1738527998065,4.56,205.88,205.68,5.8089]
[1738527998066,39.52439606,205.79,205.68,5.8089]
[1738527998766,39.52439606,205.75,205.6,6.1834]
[1738527998968,4.54,205.74,205.61,5.867]
[1738527999169,4.89697949,205.7,205.65,0.03204084]
[1738527999469,0.03427949,205.7,205.65,0.03204084]
[1738528000565,4.89687949,205.7,205.65,0.03204084]
[1738528001268,4.863,205.69,205.65,0.03204084]
[1738528002164,0.03427949,205.7,205.65,0.03204084]
[1738528002371,39.52439606,205.61,205.42,39.52439606]
[1738528002667,39.52439606,205.7,205.52,5.8791]
[1738528002867,39.52439606,205.65,205.53,5.9544]
[1738528003464,0.03580876,205.61,205.57,0.03106424]
[1738528003866,4.90060876,205.61,205.57,0.03106424]
[1738528004167,4.54,205.6,205.57,0.03106424]